fUST/lending_fUST_20260213
["ID","MTS","AMOUNT","RATE_DAILY","PERIOD"]
[405211879,1770913648942,-620.57,0.00037808,5]
[405211880,1770913648962,-500.0,0.00037808,5]
[405211882,1770913648986,-500.0,0.00037808,5]
[405211883,1770913649010,-1668.62,0.00037808,2]
[405211884,1770913649041,-500.0,0.00037808,5]
[405211885,1770913649064,-1026.32,0.00037808,2]
[405211886,1770913649084,-500.0,0.00037808,5]
[405211887,1770913649106,-500.0,0.00037808,5]
[405211888,1770913649127,-500.0,0.00037808,5]
[405211889,1770913649147,-500.0,0.00037808,5]
[405211890,1770913649168,-500.0,0.00037808,5]
[405211891,1770913649188,-500.0,0.00037808,5]
[405211892,1770913649211,-500.0,0.00037808,5]
[405211893,1770913649236,-500.0,0.00037808,2]
[405211894,1770913649256,-500.0,0.00037808,5]
[405211895,1770913649277,-2655.73,0.00037808,5]
[405211896,1770913649298,-500.0,0.00037808,5]
[405211897,1770913649320,-528.06,0.00037808,5]
[405211898,1770913649341,-4082.63,0.00037808,5]
[405211899,1770913649362,-500.0,0.00037808,5]
[405211900,1770913649385,-500.0,0.00037808,5]
[405211901,1770913649417,-500.0,0.00037808,5]
[405211902,1770913649447,-500.0,0.00037808,5]
[405211903,1770913649477,-500.0,0.00037808,5]
[405211904,1770913649507,-1395.04,0.00037808,5]
[405211905,1770913649535,-598.52,0.00037808,5]
[405211906,1770913649562,-20510.45,0.00037808,5]
[405211907,1770913649589,-500.0,0.00037808,5]
[405211908,1770913649617,-500.0,0.00037808,5]
[405211909,1770913649644,-500.0,0.00037808,5]
[405211910,1770913649673,-8470.08402551,0.00037817,3]
[405211911,1770913649701,-567.33147312,0.0003789,3]
[405211912,1770913649727,-7752.53778222,0.000379,2]
[405211913,1770913649953,-500.0,0.00034211,7]
[405211914,1770913649988,-500.0,0.00034211,7]
[405211915,1770913650021,-500.0,0.00034211,7]
[405211916,1770913650051,-500.0,0.00034211,7]
[405211917,1770913650081,-608.13347249,0.00034211,7]
[405211918,1770913650109,-875.84,0.0003725,10]
[405211919,1770913650132,-520.0,0.0003726,30]
[405211920,1770913650159,-56798.63345556,0.000379,2]
[405211921,1770913650183,-4805.0,0.00038,7]
[405211922,1770913650210,-98946.98170095,0.00038,2]
[405211923,1770913650268,-86067.290889,0.00038,2]
[405211924,1770913650451,-500.0,0.00034211,7]
[405211925,1770913650484,-500.0,0.00034211,7]
[405211926,1770913650516,-500.0,0.00034211,7]
[405211927,1770913650543,-500.0,0.00034211,7]
[405211928,1770913650570,-500.0,0.00034211,7]
[405211929,1770913650595,-500.0,0.00034211,7]
[405211930,1770913650621,-500.0,0.00034211,7]
[405211931,1770913650644,-543.12311801,0.00034211,7]
[405211932,1770913650665,-516.0,0.00037808,30]
[405211933,1770913650685,-831.0,0.00037808,30]
[405211934,1770913650705,-93641.45120423,0.00038,2]
[405211935,1770913650727,-151.0,0.00038,31]
[405211936,1770913650752,-799.04333876,0.00038023,3]
[405211940,1770913708406,6914.88500488,0.00017,2]
[405211942,1770913804412,168.24852201,0.00013273,2]
[405211943,1770913807299,500.0,0.00013273,2]
[405212003,1770913831621,-1187.84927605,0.0002465,2]
[405212004,1770913831633,-240.17315569,0.0002465,2]
[405212005,1770913831643,-171.04579812,0.00024825,2]
[405212006,1770913831652,-300.0,0.00024999,2]
[405212007,1770913831661,-492.02995175,0.00025,2]
[405212009,1770913831673,-13223.9,0.00025,2]
[405212011,1770913831684,-4057.28979,0.00025,2]
[405212013,1770913831695,-3813.0,0.00025,2]
[405212024,1770913831817,-11109.068629,0.00025,2]
[405212027,1770913831828,-663.51,0.00025,2]
[405212514,1770913842517,-194.37441797,0.00024999,2]
[405212515,1770913842527,-732.25961014,0.00025,2]
[405212516,1770913842537,-201.83404178,0.00026825,2]
[405212517,1770913842547,-420.0,0.00027082,2]
[405212518,1770913842556,-232.62228545,0.00028825,2]
[405212519,1770913842566,-587.0,0.00029339,2]
[405212520,1770913842577,-263.41052911,0.00030825,2]
[405212521,1770913842586,-823.0,0.00031784,2]
[405212522,1770913842595,-294.19877277,0.00032825,2]
[405212523,1770913842605,-2977.03,0.00032876,120]
[405212524,1770913842619,-422.38,0.00033778,10]
[405212525,1770913842628,-659.47,0.00033778,10]
[405212526,1770913842638,-87126.46257878,0.00033788,60]
[405212527,1770913842662,-9563.032321,0.00033788,60]
[405212528,1770913842674,-2034.02,0.00033788,60]
[405212529,1770913842685,-49499.99999984,0.00033788,60]
[405212530,1770913842697,-521.34958622,0.00033788,60]
[405212531,1770913842731,-1485.55262987,0.00033788,60]
[405212532,1770913842746,-6910.0,0.00033788,60]
[405212604,1770913843534,-15835.081581,0.00033788,60]
[405212983,1770913847462,-18716.562687,0.00033788,60]
[405212985,1770913847473,-383.71407802,0.00033788,60]
[405213001,1770913847625,-18283.843181,0.00033788,60]
[405213011,1770913847714,-1963.82247,0.00033788,60]
[405213013,1770913847726,-30340.49486432,0.00033788,60]
[405213015,1770913847735,-385.95,0.000338,30]
[405213017,1770913847744,-3053.2,0.000338,14]
[405213019,1770913847753,-742.60909304,0.00034211,7]
[405213021,1770913847762,-898.0,0.00034242,30]
[405213023,1770913847772,-430.0,0.00034242,30]
[405213025,1770913847781,-266.0,0.00034242,30]
[405213027,1770913847790,-1152.0,0.00034433,2]
[405213029,1770913847799,-600.0,0.00034463,30]
[405213031,1770913847808,-324.98701643,0.00034825,120]
[405213033,1770913847817,-6659.26205116,0.00034898,2]
[405213034,1770913847826,-7633.14118275,0.00035,2]
[405213037,1770913847837,-512.27037556,0.00035,2]
[405213038,1770913847846,-609.44,0.00035606,10]
[405213040,1770913847856,-2551.64,0.00035616,5]
[405213042,1770913847864,-500.0,0.00035616,5]
[405213044,1770913847875,-1659.83,0.00035616,5]
[405213046,1770913847883,-500.0,0.00035616,5]
[405213048,1770913847893,-871.9,0.00035616,5]
[405213050,1770913847902,-500.0,0.00035616,5]
[405213052,1770913847912,-1042.89,0.00035616,2]
[405213054,1770913847921,-12819.03,0.00035616,5]
[405213056,1770913847931,-500.0,0.00035616,5]
[405213058,1770913847939,-500.0,0.00035616,5]
[405213060,1770913847950,-447.42,0.00035616,5]
[405213062,1770913847958,-2551.64,0.0003589,5]
[405213064,1770913847967,-500.0,0.0003589,5]
[405213066,1770913847976,-1659.83,0.0003589,5]
[405213068,1770913847986,-500.0,0.0003589,5]
[405213069,1770913847995,-871.9,0.0003589,5]
[405213071,1770913848004,-500.0,0.0003589,5]
[405213073,1770913848014,-1042.89,0.0003589,2]
[405213075,1770913848023,-12819.03,0.0003589,5]
[405213077,1770913848032,-619.95179512,0.0003589,5]
[405213079,1770913848043,-2551.64,0.00036164,5]
[405213081,1770913848051,-500.0,0.00036164,5]
[405213083,1770913848061,-1659.83,0.00036164,5]
[405213085,1770913848071,-500.0,0.00036164,5]
[405213087,1770913848080,-871.9,0.00036164,5]
[405213089,1770913848094,-500.0,0.00036164,5]
[405213091,1770913848104,-1042.89,0.00036164,2]
[405213093,1770913848113,-12819.03,0.00036164,5]
[405213095,1770913848127,-2551.64,0.00036438,5]
[405213097,1770913848137,-500.0,0.00036438,5]
[405213099,1770913848146,-1659.83,0.00036438,5]
[405213102,1770913848158,-500.0,0.00036438,5]
[405213105,1770913848167,-871.9,0.00036438,5]
[405213108,1770913848176,-500.0,0.00036438,5]
[405213110,1770913848186,-1042.89,0.00036438,2]
[405213112,1770913848195,-12819.03,0.00036438,5]
[405213114,1770913848204,-2000.0,0.00036603,2]
[405213116,1770913848213,-2551.64,0.00036712,5]
[405213117,1770913848223,-500.0,0.00036712,5]
[405213119,1770913848232,-1659.83,0.00036712,5]
[405213121,1770913848242,-500.0,0.00036712,5]
[405213123,1770913848251,-871.9,0.00036712,5]
[405213125,1770913848260,-500.0,0.00036712,5]
[405213127,1770913848270,-1042.89,0.00036712,2]
[405213129,1770913848279,-7624.51232902,0.00036712,5]
[405213134,1770913848323,-5194.51767098,0.00036712,5]
[405213136,1770913848332,-355.7752601,0.00036825,120]
[405213138,1770913848341,-2551.64,0.00036986,5]
[405213140,1770913848351,-500.0,0.00036986,5]
[405213142,1770913848359,-1659.83,0.00036986,5]
[405213144,1770913848370,-500.0,0.00036986,5]
[405213146,1770913848379,-871.9,0.00036986,5]
[405213148,1770913848389,-500.0,0.00036986,5]
[405213150,1770913848399,-1042.89,0.00036986,2]
[405213152,1770913848409,-5009.02005892,0.00036986,5]
[405213154,1770913848421,-7810.00994108,0.00036986,5]
[405213156,1770913848431,-2551.64,0.0003726,5]
[405213158,1770913848441,-500.0,0.0003726,5]
[405213160,1770913848451,-1659.83,0.0003726,5]
[405213162,1770913848462,-500.0,0.0003726,5]
[405213164,1770913848472,-871.9,0.0003726,5]
[405213166,1770913848481,-500.0,0.0003726,5]
[405213168,1770913848491,-1042.89,0.0003726,2]
[405213170,1770913848501,-12819.03,0.0003726,5]
[405213172,1770913848511,-1613.0,0.00037302,2]
[405213174,1770913848520,-2551.64,0.00037534,5]
[405213176,1770913848530,-500.0,0.00037534,5]
[405213178,1770913848540,-1659.83,0.00037534,5]
[405213180,1770913848549,-500.0,0.00037534,5]
[405213182,1770913848559,-871.9,0.00037534,5]
[405213184,1770913848569,-500.0,0.00037534,5]
[405213186,1770913848580,-1042.89,0.00037534,2]
[405213188,1770913848589,-12819.03,0.00037534,5]
[405213190,1770913848599,-431.28,0.000376,14]
[405213191,1770913848608,-2551.64,0.00037808,5]
[405213193,1770913848622,-500.0,0.00037808,5]
[405213195,1770913848631,-1659.83,0.00037808,5]
[405213197,1770913848640,-500.0,0.00037808,5]
[405213199,1770913848650,-871.9,0.00037808,5]
[405213201,1770913848659,-500.0,0.00037808,5]
[405213203,1770913848668,-1042.89,0.00037808,2]
[405213205,1770913848678,-12819.03,0.00037808,5]
[405213207,1770913848688,-720.0,0.00037909,30]
[405213219,1770913848797,-582.45033253,0.0003796,30]
[405213222,1770913848810,-500.0,0.00037962,30]
[405213224,1770913848819,-500.0,0.0003797,30]
[405213226,1770913848828,-500.0,0.0003797,31]
[405213228,1770913848837,-500.0,0.00037999,31]
[405213229,1770913848847,-3053.2,0.00038,14]
[405213231,1770913848856,-200.0,0.00038015,120]
[405213233,1770913848865,-15490.00458781,0.00038023,3]
[405213235,1770913848879,-543.37449558,0.00038023,3]
[405213237,1770913848889,-200.0,0.00038029,120]
[405213239,1770913848898,-620.57,0.00038082,5]
[405213241,1770913848907,-247.19278159,0.00038082,5]
[405213243,1770913848916,-500.0,0.00038082,5]
[405213245,1770913848925,-500.0,0.00038082,5]
[405213247,1770913848934,-1026.32,0.00038082,2]
[405213249,1770913848944,-500.0,0.00038082,5]
[405213251,1770913848953,-169.77721138,0.00038082,5]
[405213253,1770913848963,-500.0,0.00038082,5]
[405213255,1770913848973,-500.0,0.00038082,5]
[405213257,1770913848982,-500.0,0.00038082,5]
[405213259,1770913848992,-500.0,0.00038082,5]
[405213261,1770913849001,-500.0,0.00038082,5]
[405213263,1770913849010,-500.0,0.00038082,2]
[405213265,1770913849019,-500.0,0.00038082,5]
[405213267,1770913849028,-500.0,0.00038082,5]
[405213269,1770913849037,-500.0,0.00038082,5]
[405213271,1770913849046,-500.0,0.00038082,5]
[405213272,1770913849055,-496.502549,0.00038082,5]
[405213274,1770913849064,-500.0,0.00038082,5]
[405213276,1770913849074,-500.0,0.00038082,5]
[405213278,1770913849082,-2551.64,0.00038082,5]
[405213280,1770913849095,-500.0,0.00038082,5]
[405213282,1770913849104,-1659.83,0.00038082,5]
[405213284,1770913849114,-500.0,0.00038082,5]
[405213286,1770913849126,-871.9,0.00038082,5]
[405213288,1770913849135,-500.0,0.00038082,5]
[405213290,1770913849145,-1042.89,0.00038082,2]
[405213292,1770913849155,-12819.03,0.00038082,5]
[405213294,1770913849166,-500.0,0.00038099,30]
[405213296,1770913849175,-385.95,0.000381,30]
[405213298,1770913849184,-200.0,0.00038151,120]
[405213300,1770913849193,-500.0,0.00038298,30]
[405213302,1770913849202,-1410.97731284,0.00038298,30]
[405213304,1770913849211,-12106.24747698,0.000383,30]
[405213306,1770913849221,-214.96,0.000383,7]
[405213308,1770913849230,-38000.0,0.00038356,15]
[405213310,1770913849239,-620.57,0.00038356,5]
[405213312,1770913849248,-500.0,0.00038356,5]
[405213314,1770913849259,-500.0,0.00038356,5]
[405213316,1770913849268,-1026.32,0.00038356,2]
[405213318,1770913849278,-441.85651493,0.00038356,5]
[405213320,1770913849288,-500.0,0.00038356,5]
[405213322,1770913849298,-500.0,0.00038356,5]
[405213324,1770913849308,-500.0,0.00038356,5]
[405213326,1770913849317,-500.0,0.00038356,5]
[405213328,1770913849326,-500.0,0.00038356,5]
[405213329,1770913849336,-500.0,0.00038356,2]
[405213330,1770913849345,-500.0,0.00038356,5]
[405213331,1770913849355,-330.57502809,0.00038356,5]
[405213332,1770913849364,-500.0,0.00038356,5]
[405213333,1770913849375,-500.0,0.00038356,5]
[405213334,1770913849384,-500.0,0.00038356,5]
[405213335,1770913849395,-483.12098482,0.00038356,5]
[405213336,1770913849404,-2551.64,0.00038356,5]
[405213337,1770913849413,-528.68763405,0.00038356,5]
[405213338,1770913849423,-1659.83,0.00038356,5]
[405213339,1770913849432,-500.0,0.00038356,5]
[405213341,1770913849442,-200.0,0.00038356,5]
[405213343,1770913849451,-200.0,0.00038356,5]
[405213345,1770913849461,-200.0,0.00038356,5]
[405213347,1770913849470,-200.0,0.00038356,5]
[405213349,1770913849479,-200.0,0.00038356,5]
[405213351,1770913849488,-200.0,0.00038356,5]
[405213353,1770913849497,-871.9,0.00038356,5]
[405213355,1770913849505,-200.0,0.00038356,5]
[405213357,1770913849515,-200.0,0.00038356,5]
[405213359,1770913849524,-200.0,0.00038356,5]
[405213361,1770913849533,-200.0,0.00038356,5]
[405213363,1770913849543,-200.0,0.00038356,5]
[405213365,1770913849552,-500.0,0.00038356,5]
[405213367,1770913849562,-1042.89,0.00038356,2]
[405213369,1770913849571,-12819.03,0.00038356,5]
[405213371,1770913849581,-151.0,0.00038356,120]
[405213373,1770913849590,-169.423469,0.00038356,120]
[405213375,1770913849599,-178.402634,0.00038356,120]
[405213377,1770913849610,-293.861405,0.00038356,120]
[405213379,1770913849619,-293.861405,0.00038356,120]
[405213381,1770913849628,-293.861405,0.00038356,120]
[405213383,1770913849638,-293.861405,0.00038356,120]
[405213385,1770913849647,-151.0,0.00038356,120]
[405213387,1770913849656,-771.386377,0.00038356,120]
[405213389,1770913849666,-771.386377,0.00038356,120]
[405213391,1770913849675,-771.386377,0.00038356,120]
[405213393,1770913849684,-771.386377,0.00038356,120]
[405213395,1770913849693,-200.0,0.00038399,120]
[405213397,1770913849703,-8774.36741623,0.00038606,3]
[405213399,1770913849712,-620.57,0.0003863,5]
[405213401,1770913849722,-221.15874535,0.0003863,5]
[405213403,1770913849731,-500.0,0.0003863,5]
[405213404,1770913849740,-1026.32,0.0003863,2]
[405213407,1770913849751,-500.0,0.0003863,5]
[405213408,1770913849760,-500.0,0.0003863,5]
[405213411,1770913849770,-170.5790981,0.0003863,5]
[405213413,1770913849779,-500.0,0.0003863,5]
[405213415,1770913849788,-438.27397129,0.0003863,5]
[405213417,1770913849798,-500.0,0.0003863,2]
[405213418,1770913849807,-500.0,0.0003863,5]
[405213420,1770913849816,-500.0,0.0003863,5]
[405213423,1770913849826,-163.7019033,0.0003863,5]
[405213425,1770913849835,-500.0,0.0003863,5]
[405213426,1770913849844,-2551.64,0.0003863,5]
[405213429,1770913849853,-1659.83,0.0003863,5]
[405213431,1770913849862,-500.0,0.0003863,5]
[405213433,1770913849874,-871.9,0.0003863,5]
[405213434,1770913849883,-269.14403034,0.0003863,5]
[405213436,1770913849893,-500.0,0.0003863,5]
[405213439,1770913849903,-1042.89,0.0003863,2]
[405213441,1770913849914,-12819.03,0.0003863,5]
[405213443,1770913849923,-180.338226,0.00038637,2]
[405213444,1770913849933,-200.0,0.00038651,120]
[405213446,1770913849942,-158.4841672,0.00038674,2]
[405213449,1770913849952,-16991.33417208,0.00038735,3]
[405213450,1770913849961,-200.0,0.00038822,120]
[405213453,1770913849970,-386.56350376,0.00038825,120]
[405213454,1770913849979,-200.0,0.00038866,120]
[405213457,1770913849989,-2000.0,0.00038879,21]
[405213459,1770913849998,-620.57,0.00038904,5]
[405213460,1770913850008,-432.94825333,0.00038904,5]
[405213463,1770913850018,-1026.32,0.00038904,2]
[405213465,1770913850028,-168.27087076,0.00038904,5]
[405213467,1770913850036,-500.0,0.00038904,5]
[405213469,1770913850046,-500.0,0.00038904,5]
[405213471,1770913850055,-500.0,0.00038904,2]
[405213473,1770913850064,-500.0,0.00038904,5]
[405213474,1770913850074,-500.0,0.00038904,5]
[405213476,1770913850083,-189.01256628,0.00038904,5]
[405213479,1770913850095,-2551.64,0.00038904,5]
[405213481,1770913850105,-1659.83,0.00038904,5]
[405213483,1770913850115,-500.0,0.00038904,5]
[405213485,1770913850128,-871.9,0.00038904,5]
[405213486,1770913850138,-500.0,0.00038904,5]
[405213488,1770913850149,-1042.89,0.00038904,2]
[405213490,1770913850160,-12819.03,0.00038904,5]
[405213492,1770913850171,-13699.26682043,0.00039,2]
[405213494,1770913850180,-6473.7468065,0.00039,120]
[405213496,1770913850189,-1027.0,0.00039,7]
[405213499,1770913850199,-620.57,0.00039178,5]
[405213501,1770913850208,-1026.32,0.00039178,2]
[405213503,1770913850218,-500.0,0.00039178,5]
[405213504,1770913850227,-331.66382372,0.00039178,5]
[405213507,1770913850237,-500.0,0.00039178,2]
[405213508,1770913850246,-407.31109732,0.00039178,5]
[405213510,1770913850257,-500.0,0.00039178,5]
[405213512,1770913850267,-2551.64,0.00039178,5]
[405213515,1770913850277,-1659.83,0.00039178,5]
[405213516,1770913850287,-500.0,0.00039178,5]
[405213518,1770913850296,-871.9,0.00039178,5]
[405213520,1770913850305,-500.0,0.00039178,5]
[405213522,1770913850316,-1042.89,0.00039178,2]
[405213525,1770913850326,-12819.03,0.00039178,5]
[405213526,1770913850335,-768.586088,0.00039259,2]
[405213529,1770913850345,-989.15522207,0.00039326,2]
[405213530,1770913850354,-2967.46092898,0.00039343,10]
[405213533,1770913850363,-9143.96572844,0.00039395,3]
[405213535,1770913850379,-17693.6204176,0.00039448,3]
[405213537,1770913850388,-620.57,0.00039452,5]
[405213539,1770913850398,-1026.32,0.00039452,2]
[405213541,1770913850407,-315.36569725,0.00039452,5]
[405213543,1770913850416,-500.0,0.00039452,2]
[405213545,1770913850425,-500.0,0.00039452,5]
[405213546,1770913850435,-151.0,0.00039452,120]
[405213548,1770913850445,-2551.64,0.00039452,5]
[405213551,1770913850454,-771.386377,0.00039452,120]
[405213552,1770913850464,-771.386377,0.00039452,120]
[405213555,1770913850473,-771.386377,0.00039452,120]
[405213556,1770913850483,-771.386377,0.00039452,120]
[405213558,1770913850493,-1659.83,0.00039452,5]
[405213560,1770913850502,-500.0,0.00039452,5]
[405213562,1770913850512,-871.9,0.00039452,5]
[405213564,1770913850521,-500.0,0.00039452,5]
[405213566,1770913850531,-1042.89,0.00039452,2]
[405213568,1770913850540,-12819.03,0.00039452,5]
[405213570,1770913850549,-227.504592,0.00039475,2]
[405213572,1770913850559,-1423836.90986214,0.00039501,2]
[405213574,1770913850567,-201.60031204,0.00039509,15]
[405213576,1770913850577,-453.54030861,0.00039509,15]
[405213578,1770913850587,-200.0,0.00039622,120]
[405213580,1770913850596,-1000.0,0.0003964,2]
[405213582,1770913850605,-200.0,0.00039645,120]
[405213584,1770913850614,-431.28,0.000397,14]
[405213586,1770913850631,-500.0,0.00039702,30]
[405213588,1770913850641,-2000.0,0.00039702,30]
[405213590,1770913850651,-1888.0,0.00039702,30]
[405213592,1770913850660,-620.57,0.00039726,5]
[405213594,1770913850669,-1026.32,0.00039726,2]
[405213597,1770913850680,-151.0,0.00039726,120]
[405213599,1770913850689,-500.0,0.00039726,2]
[405213601,1770913850698,-500.0,0.00039726,5]
[405213603,1770913850708,-293.861405,0.00039726,120]
[405213605,1770913850717,-293.861405,0.00039726,120]
[405213606,1770913850726,-293.861405,0.00039726,120]
[405213608,1770913850735,-293.861405,0.00039726,120]
[405213610,1770913850745,-2551.64,0.00039726,5]
[405213613,1770913850755,-1659.83,0.00039726,5]
[405213615,1770913850764,-421.05736561,0.00039726,5]
[405213617,1770913850773,-871.9,0.00039726,5]
[405213618,1770913850783,-500.0,0.00039726,5]
[405213621,1770913850792,-1042.89,0.00039726,2]
[405213623,1770913850802,-12819.03,0.00039726,5]
[405213624,1770913850811,-5092.0,0.000399,30]
[405213627,1770913850820,-4500.0,0.000399,90]
[405213628,1770913850829,-10044.01959966,0.000399,2]
[405213630,1770913850839,-83555.07669314,0.0004,120]
[405213633,1770913850852,-129979.32014194,0.0004,120]
[405213635,1770913850862,-9868.19839032,0.0004,120]
[405213637,1770913850876,-302.0,0.0004,120]
[405216500,1770913884418,500.0,0.00013273,2]
[405230974,1770914117790,500.0,0.00013273,2]
[405230975,1770914117827,1000.0,0.00013821,2]
[405230976,1770914117859,911.34022662,0.00014368,2]
[405230978,1770914121195,267.2856157,0.00014247,2]
[405230979,1770914121255,500.0,0.00013699,2]
[405230980,1770914188592,500.0,0.00013273,2]
[405230981,1770914194412,495.53123169,0.00021918,2]
[405230983,1770914212378,170.604504,0.00020065,2]
[405230984,1770914224408,500.0,0.00013273,2]
[405230985,1770914225368,500.0,0.00013699,2]
[405230986,1770914231478,500.0,0.00013699,2]
[405230987,1770914233604,500.0,0.00013273,2]
[405230988,1770914411111,500.0,0.00013699,2]
[405230989,1770914411172,872.35853343,0.00014247,2]
[405230990,1770914418295,500.0,0.00013273,2]
[405230991,1770914432763,500.0,0.00013273,2]
[405230992,1770914489622,222.15552708,0.00013821,2]
[405230993,1770914489688,500.0,0.00013273,2]
[405230994,1770914495298,500.0,0.00013273,2]
[405230996,1770914526747,300.0,0.00013673,2]
[405230997,1770914572210,12509.6418806,0.00029617,120]
[405230999,1770914713589,500.0,0.00013273,2]
[405231000,1770914749167,1001.0,0.0002,6]
[405231001,1770915007666,500.0,0.00013273,2]
[405231002,1770915007715,358.73654042,0.00013821,2]
[405231029,1770915031676,-352.49459245,0.00024055,2]
[405231031,1770915031686,-150.0,0.00024524,2]
[405231032,1770915031697,-300.0,0.00024992,2]
[405231034,1770915031707,-300.0,0.00024992,2]
[405231036,1770915031717,-300.0,0.00024992,2]
[405231038,1770915031727,-300.0,0.00024992,2]
[405231040,1770915031736,-800.04963285,0.00024992,2]
[405231042,1770915031748,-399.95036715,0.00024992,2]
[405231044,1770915031757,-650.02727789,0.00024993,2]
[405231046,1770915031768,-500.0,0.00024993,2]
[405231048,1770915031777,-500.0,0.00024993,2]
[405231050,1770915031787,-500.0,0.00024993,2]
[405231052,1770915031800,-500.0,0.00024993,2]
[405231054,1770915031816,-250.4027484,0.00024993,2]
[405231057,1770915031827,-249.5972516,0.00024993,2]
[405231059,1770915031837,-500.0,0.00024993,2]
[405231074,1770915031967,-500.0,0.00024993,2]
[405231076,1770915031993,-135.90508772,0.00024993,2]
[405231841,1770915045664,-364.09491228,0.00024993,2]
[405231843,1770915045674,-500.0,0.00024993,2]
[405231845,1770915045684,-500.0,0.00024993,2]
[405231847,1770915045694,-500.0,0.00024993,2]
[405231849,1770915045703,-500.0,0.00024993,2]
[405231851,1770915045713,-450.52286916,0.00024993,2]
[405231874,1770915045937,-49.47713084,0.00024993,2]
[405231876,1770915045947,-500.0,0.00024993,2]
[405231878,1770915045956,-500.0,0.00024993,2]
[405231880,1770915045966,-208.39991691,0.00024993,2]
[405231882,1770915045975,-500.0,0.00024993,2]
[405231884,1770915045985,-500.0,0.00024993,2]
[405231886,1770915045993,-500.0,0.00024993,2]
[405231888,1770915046002,-500.0,0.00024993,2]
[405231890,1770915046011,-500.0,0.00024993,2]
[405231892,1770915046021,-500.0,0.00024993,2]
[405231894,1770915046030,-500.0,0.00024993,2]
[405231896,1770915046039,-500.0,0.00024993,2]
[405231898,1770915046048,-108.59690393,0.00024993,2]
[405231903,1770915046094,-391.40309607,0.00024993,2]
[405231905,1770915046104,-500.0,0.00024993,2]
[405231907,1770915046114,-500.0,0.00024993,2]
[405231909,1770915046124,-500.0,0.00024993,2]
[405231911,1770915046133,-500.0,0.00024993,2]
[405231913,1770915046143,-500.0,0.00024993,2]
[405231915,1770915046152,-500.0,0.00024993,2]
[405231917,1770915046161,-500.0,0.00024993,2]
[405231919,1770915046170,-500.0,0.00024993,2]
[405231921,1770915046180,-500.0,0.00024993,2]
[405231923,1770915046190,-445.25978535,0.00024993,2]
[405231925,1770915046199,-500.0,0.00024993,2]
[405231927,1770915046208,-500.0,0.00024993,2]
[405231929,1770915046218,-500.0,0.00024993,2]
[405231931,1770915046227,-300.0,0.00024993,2]
[405231933,1770915046237,-177.0,0.00026524,2]
[405231935,1770915046247,-178.0,0.00027,7]
[405231937,1770915046257,-420.0,0.00027075,2]
[405231939,1770915046267,-1680.0,0.00027197,2]
[405231941,1770915046285,-204.0,0.00028524,2]
[405231943,1770915046295,-178.0,0.00028767,14]
[405231945,1770915046305,-1000.0,0.00028939,30]
[405231947,1770915046316,-4756.850889,0.00029215,2]
[405231949,1770915046327,-587.0,0.00029331,2]
[405231951,1770915046338,-720.0,0.00029597,2]
[405231954,1770915046349,-179.0,0.00030205,14]
[405231956,1770915046358,-5701.4858303,0.00030462,2]
[405231957,1770915046368,-231.0,0.00030524,2]
[405231959,1770915046378,-500.0,0.0003149,7]
[405231962,1770915046388,-500.0,0.00031576,7]